fUST/lending_fUST_20240611
["ID","MTS","AMOUNT","RATE_DAILY","PERIOD"]
[329089589,1718097048967,-500.0,0.00022191,2]
[329089590,1718097048979,-500.0,0.00022191,2]
[329089591,1718097048992,-500.0,0.00022191,2]
[329089592,1718097049009,-1207.97,0.00022191,2]
[329089593,1718097049020,-2660.25,0.00022191,2]
[329089594,1718097049030,-500.0,0.00022191,2]
[329089595,1718097049041,-502.34144687,0.00022191,2]
[329089596,1718097049052,-500.0,0.00022191,2]
[329089597,1718097049063,-500.0,0.00022191,2]
[329089598,1718097049074,-743.31,0.00022191,2]
[329089599,1718097049084,-500.0,0.00022191,2]
[329089600,1718097049094,-500.0,0.00022191,2]
[329089601,1718097049105,-500.75378772,0.00022191,2]
[329089602,1718097049115,-509.45263125,0.00022191,2]
[329089603,1718097049126,-505.92783357,0.00022191,2]
[329089604,1718097049136,-500.0,0.00022191,2]
[329089605,1718097049147,-500.0,0.00022191,2]
[329089606,1718097049157,-151.0,0.00022191,2]
[329089607,1718097049168,-500.0,0.00022191,2]
[329089608,1718097049178,-500.0,0.00022191,2]
[329089609,1718097049189,-500.0,0.00022191,2]
[329089610,1718097049199,-500.0,0.00022191,2]
[329089611,1718097049209,-500.0,0.00022191,2]
[329089612,1718097049220,-500.0,0.00022191,2]
[329089613,1718097049230,-500.0,0.00022191,2]
[329089614,1718097049240,-151.0,0.00022191,2]
[329089615,1718097049252,-151.0,0.00022191,2]
[329089616,1718097049262,-500.0,0.00022191,2]
[329089617,1718097049272,-123.95972538,0.00022191,2]
[329089635,1718097130283,262.11706194,9.999e-05,2]
[329089636,1718097135834,155.0310062,9.999e-05,2]
[329089644,1718097663323,523.3760438,9.999e-05,2]
[329089646,1718097862277,1442.34664303,9.999e-05,2]
[329089704,1718098233403,-531.85654972,0.00015587,2]
[329089705,1718098233433,-339.5000166,0.00015587,2]
[329089712,1718098239227,-500.0,0.00015587,2]
[329089713,1718098239336,-612.71739394,0.00015587,2]
[329089714,1718098239349,-6.98155484,0.00015588,2]
[329089715,1718098239415,-1870.17090926,0.00015588,2]
[329089716,1718098239428,-489.40086406,0.000156,2]
[329089717,1718098239444,-17532.10886267,0.00018053,2]
[329089719,1718098239463,-6340.89467568,0.00018053,2]
[329089862,1718098241512,-1026.99646165,0.00018053,2]
[329089864,1718098241524,-219.26407076,0.000189,2]
[329089866,1718098241536,-155.27429986,0.00019328,2]
[329089868,1718098241549,-1442.91983572,0.00019329,2]
[329089870,1718098241560,-190.23735943,0.00019928,2]
[329089872,1718098241572,-3384.24093725,0.00020027,2]
[329089875,1718098241596,-1905.97324684,0.00020027,2]
[329089877,1718098241610,-263.47265482,0.00020629,2]
[329089879,1718098241620,-155.60621199,0.00020629,2]
[329089881,1718098241632,-309.9690031,0.0002063,2]
[329089883,1718098241642,-30807.02433747,0.00020631,2]
[329089885,1718098241653,-153.0,0.00021359,2]
[329089887,1718098241664,-153.0,0.00021359,2]
[329089889,1718098241675,-153.0,0.00021359,2]
[329089891,1718098241685,-153.0,0.00021359,2]
[329089893,1718098241700,-153.0,0.00021359,2]
[329089895,1718098241711,-153.0,0.00021359,2]
[329089897,1718098241722,-153.0,0.00021359,2]
[329089899,1718098241732,-153.0,0.00021359,2]
[329089901,1718098241743,-153.0,0.00021359,2]
[329089903,1718098241754,-153.0,0.00021359,2]
[329089905,1718098241765,-153.0,0.00021359,2]
[329089907,1718098241776,-153.0,0.00021359,2]
[329089909,1718098241787,-153.0,0.00021359,2]
[329089911,1718098241798,-153.0,0.00021359,2]
[329089913,1718098241809,-153.0,0.00021359,2]
[329089915,1718098241821,-153.0,0.00021359,2]
[329089917,1718098241831,-153.0,0.00021361,2]
[329089919,1718098241843,-153.0,0.00021361,2]
[329089921,1718098241854,-153.0,0.00021361,2]
[329089923,1718098241865,-153.0,0.00021361,2]
[329089925,1718098241877,-153.0,0.00021361,2]
[329089927,1718098241888,-153.0,0.00021361,2]
[329089929,1718098241900,-153.0,0.00021361,2]
[329089931,1718098241913,-617.7,0.00021566,2]
[329089933,1718098241924,-420.0060389,0.00021852,2]
[329089935,1718098241938,-768.33,0.00021907,3]
[329089937,1718098241959,-620.22371013,0.00021909,2]
[329089939,1718098241972,-639.6365051,0.00021915,2]
[329089941,1718098241985,-500.0,0.00021916,2]
[329089943,1718098241998,-500.0,0.00021916,2]
[329089945,1718098242010,-500.0,0.00021916,2]
[329089947,1718098242022,-617.87075,0.00021916,2]
[329089949,1718098242033,-407.65889285,0.00021916,2]
[329089951,1718098242044,-14647.84302203,0.00021917,15]
[329089953,1718098242056,-500.0,0.00021917,2]
[329089955,1718098242068,-500.0,0.00021917,2]
[329089957,1718098242081,-559.02798892,0.00021917,2]
[329089959,1718098242093,-500.0,0.00021917,4]
[329089961,1718098242105,-505.96167504,0.00021917,2]
[329089963,1718098242116,-500.0,0.00021917,2]
[329089965,1718098242128,-342.9012283,0.00021917,2]
[329089967,1718098242140,-501.73447581,0.00021917,2]
[329089969,1718098242152,-502.80661159,0.00021917,2]
[329089971,1718098242163,-500.0,0.00021917,2]
[329089973,1718098242175,-500.0,0.00021917,2]
[329089975,1718098242187,-411.58258162,0.00021917,2]
[329089977,1718098242206,-500.0,0.00021917,2]
[329089979,1718098242217,-500.0,0.00021917,2]
[329089981,1718098242228,-501.8202914,0.00021917,2]
[329089983,1718098242238,-503.48939188,0.00021917,2]
[329089985,1718098242249,-500.0,0.00021917,2]
[329089987,1718098242260,-516.02195612,0.00021917,2]
[329089989,1718098242271,-500.0,0.00021917,2]
[329089991,1718098242283,-506.08784265,0.00021917,2]
[329089993,1718098242296,-500.0,0.00021917,2]
[329089995,1718098242307,-500.0,0.00021917,2]
[329089997,1718098242321,-180.7908262,0.00021917,2]
[329089999,1718098242334,-500.0,0.00021917,2]
[329090001,1718098242345,-500.0,0.00021917,2]
[329090003,1718098242356,-500.0,0.00021917,2]
[329090005,1718098242370,-500.0,0.00021917,2]
[329090007,1718098242382,-500.0,0.00021917,2]
[329090009,1718098242393,-500.0,0.00021917,2]
[329090011,1718098242406,-500.0,0.00021917,2]
[329090013,1718098242419,-500.0,0.00021917,2]
[329090015,1718098242441,-364.69045059,0.00021917,2]
[329090017,1718098242459,-511.15885728,0.00021917,2]
[329090019,1718098242472,-500.0,0.00021917,2]
[329090021,1718098242483,-500.0,0.00021917,2]
[329090023,1718098242494,-500.0,0.00021917,2]
[329090025,1718098242505,-500.0,0.00021917,2]
[329090027,1718098242516,-509.00200849,0.00021917,2]
[329090029,1718098242526,-500.0,0.00021917,2]
[329090031,1718098242537,-505.48884414,0.00021917,2]
[329090033,1718098242548,-500.0,0.00021917,2]
[329090035,1718098242558,-500.0,0.00021917,2]
[329090036,1718098242569,-506.83143554,0.00021917,2]
[329090037,1718098242580,-500.0,0.00021917,2]
[329090038,1718098242590,-500.0,0.00021917,2]
[329090039,1718098242601,-503.40066937,0.00021917,2]
[329090040,1718098242613,-500.0,0.00021917,2]
[329090041,1718098242625,-500.0,0.00021917,2]
[329090042,1718098242635,-500.0,0.00021917,2]
[329090043,1718098242647,-531.35162347,0.00021917,2]
[329090044,1718098242658,-500.0,0.00021917,2]
[329090045,1718098242669,-506.32759368,0.00021917,2]
[329090046,1718098242680,-500.0,0.00021917,2]
[329090047,1718098242691,-500.0,0.00021917,2]
[329090048,1718098242708,-500.0,0.00021917,2]
[329090050,1718098242718,-510.68745744,0.00021917,2]
[329090051,1718098242730,-503.785688,0.00021917,2]
[329090052,1718098242742,-500.0,0.00021917,2]
[329090053,1718098242753,-509.61278591,0.00021917,2]
[329090054,1718098242764,-510.74944463,0.00021917,2]
[329090055,1718098242776,-500.0,0.00021917,2]
[329090056,1718098242788,-500.0,0.00021917,2]
[329090057,1718098242800,-504.0485279,0.00021917,2]
[329090058,1718098242812,-500.0,0.00021917,2]
[329090059,1718098242825,-503.43438394,0.00021917,2]
[329090060,1718098242838,-500.0,0.00021917,2]
[329090061,1718098242851,-500.0,0.00021917,2]
[329090062,1718098242863,-508.86402537,0.00021917,2]
[329090063,1718098242873,-500.0,0.00021917,2]
[329090064,1718098242885,-500.0,0.00021917,2]
[329090065,1718098242897,-500.0,0.00021917,2]
[329090066,1718098242908,-500.0,0.00021917,2]
[329090067,1718098242919,-355.53376981,0.00021917,2]
[329090068,1718098242930,-500.0,0.00021917,2]
[329090069,1718098242941,-500.0,0.00021917,2]
[329090070,1718098242956,-500.0,0.00021917,2]
[329090071,1718098242966,-503.39208149,0.00021917,2]
[329090072,1718098242977,-500.0,0.00021917,2]
[329090073,1718098242987,-500.0,0.00021917,2]
[329090074,1718098242998,-526.47922446,0.00021917,2]
[329090076,1718098243009,-500.0,0.00021917,2]
[329090078,1718098243020,-500.0,0.00021917,2]
[329090079,1718098243032,-500.0,0.00021917,2]
[329090080,1718098243042,-500.0,0.00021917,2]
[329090081,1718098243054,-500.0,0.00021917,2]
[329090082,1718098243064,-500.0,0.00021917,2]
[329090083,1718098243075,-500.0,0.00021917,2]
[329090084,1718098243086,-500.0,0.00021917,2]
[329090085,1718098243096,-500.0,0.00021917,2]
[329090086,1718098243107,-65.82188572,0.00021917,2]
[329090087,1718098243145,-434.17811428,0.00021917,2]
[329090088,1718098243155,-500.0,0.00021917,2]
[329090089,1718098243167,-500.0,0.00021917,2]
[329090090,1718098243178,-500.0,0.00021917,2]
[329090091,1718098243189,-500.0,0.00021917,2]
[329090092,1718098243206,-500.0,0.00021917,2]
[329090093,1718098243216,-500.0,0.00021917,2]
[329090094,1718098243228,-500.0,0.00021917,2]
[329090095,1718098243239,-49.72188572,0.00021917,2]
[329090096,1718098243253,-450.27811428,0.00021917,2]
[329090097,1718098243264,-500.00677489,0.00021917,2]
[329090098,1718098243275,-500.0,0.00021917,2]
[329090099,1718098243286,-500.0,0.00021917,2]
[329090100,1718098243297,-500.0,0.00021917,2]
[329090102,1718098243308,-500.0,0.00021917,2]
[329090103,1718098243322,-500.0,0.00021917,2]
[329090104,1718098243333,-500.0,0.00021917,2]
[329090105,1718098243343,-500.0,0.00021917,2]
[329090106,1718098243358,-500.0,0.00021917,2]
[329090107,1718098243371,-500.0,0.00021917,2]
[329090108,1718098243382,-601.69,0.00021917,2]
[329090109,1718098243393,-500.0,0.00021917,2]
[329090110,1718098243404,-500.0,0.00021917,2]
[329090111,1718098243416,-500.0,0.00021917,2]
[329090112,1718098243431,-500.0,0.00021917,2]
[329090113,1718098243444,-503.41377771,0.00021917,2]
[329090114,1718098243458,-500.0,0.00021917,2]
[329090115,1718098243469,-500.0,0.00021917,2]
[329090116,1718098243479,-500.0,0.00021917,2]
[329090117,1718098243489,-500.0,0.00021917,2]
[329090118,1718098243500,-362.85720222,0.00021917,2]
[329090119,1718098243515,-142.23587007,0.00021917,2]
[329090120,1718098243526,-503.85875661,0.00021917,2]
[329090121,1718098243537,-552.30676508,0.00021917,2]
[329090122,1718098243548,-500.0,0.00021917,2]
[329090123,1718098243559,-500.0,0.00021917,2]
[329090124,1718098243570,-500.0,0.00021917,2]
[329090125,1718098243709,-508.10020336,0.00021917,2]
[329090126,1718098243720,-500.0,0.00021917,2]
[329090127,1718098243731,-36.7198325,0.00021917,2]
[329090131,1718098248169,-464.90431132,0.00021917,2]
[329090132,1718098248180,-500.0,0.00021917,2]
[329090133,1718098248190,-500.0,0.00021917,2]
[329090134,1718098248203,-505.54806492,0.00021917,2]
[329090135,1718098248213,-500.0,0.00021917,2]
[329090136,1718098248224,-500.0,0.00021917,2]
[329090137,1718098248235,-397.84249004,0.00021917,2]
[329090142,1718098249621,-102.15750996,0.00021917,2]
[329090143,1718098249632,-320.06402085,0.00021917,2]
[329090144,1718098249673,-179.93597915,0.00021917,2]
[329090145,1718098249684,-500.0,0.00021917,2]
[329090146,1718098249695,-150.70352085,0.00021917,2]
[329090163,1718098290072,272.59860825,9.999e-05,2]
[329090164,1718098301348,477.6030436,9.999e-05,2]
[329090174,1718098337600,155.0310062,9.999e-05,2]
[329090177,1718098410674,2371.43005546,9.999e-05,2]
[329090178,1718098410703,6388.08111517,9.999e-05,2]
[329090179,1718098418272,187.41110824,9.999e-05,2]
[329090180,1718098419371,161.21242984,9.999e-05,2]
[329090182,1718098438794,1008.89831846,0.000265,120]
[329090183,1718098761902,372.78673862,9.999e-05,2]
[329090184,1718098783867,2095.64882228,9.999e-05,2]
[329090185,1718098784090,16193.59990816,9.999e-05,2]
[329090186,1718098784311,3641.46638678,9.999e-05,2]
[329090187,1718098787121,300.31915887,9.999e-05,2]
[329090188,1718098788588,16193.59990816,9.999e-05,2]
[329090189,1718098796310,3641.46638678,9.999e-05,2]
[329090190,1718098799874,2095.64882228,9.999e-05,2]
[329090191,1718098801112,252.71723914,9.999e-05,2]
[329090192,1718098814312,3299.12552236,9.999e-05,2]
[329090193,1718098817867,2095.64882228,9.999e-05,2]
[329090194,1718098826590,16193.59990816,9.999e-05,2]
[329090195,1718098837884,325.70454012,9.999e-05,2]
[329090196,1718098842589,16193.59990816,9.999e-05,2]
[329090197,1718098864606,502.94514499,9.999e-05,2]
[329090198,1718098941514,285.9259701,9.999e-05,2]
[329090199,1718098967542,155.0310062,9.999e-05,2]
[329090200,1718099036270,523.3760438,9.999e-05,2]
[329090201,1718099062407,155.0310062,9.999e-05,2]
[329090213,1718099346240,3066.33631831,9.999e-05,2]
[329090228,1718099400183,272.59860825,9.999e-05,2]
[329090229,1718099410839,927.63941968,9.999e-05,2]
[329090230,1718099413316,660.11978951,9.999e-05,2]
[329090231,1718099421927,524.49723493,9.999e-05,2]
[329090232,1718099430004,22061.09968365,9.999e-05,2]
[329090254,1718099437129,-314.372313,0.00016047,2]
[329090256,1718099437140,-1911.54148934,0.00016431,2]
[329090258,1718099437152,-155.02937188,0.00016432,2]
[329090260,1718099437164,-92.87712749,0.00016432,2]
[329090298,1718099440039,-228.99686355,0.00016432,2]
[329090299,1718099440051,-318.08155146,0.00016432,2]
[329090300,1718099440062,-309.87603409,0.00016432,2]
[329090301,1718099440073,-155.18999509,0.00016432,2]
[329090302,1718099440084,-553.10506953,0.00016432,2]
[329090303,1718099440095,-309.9070279,0.00016432,2]
[329090304,1718099440106,-159.26525593,0.00016432,2]
[329090305,1718099440118,-441.73023304,0.00016432,2]
[329090306,1718099440129,-240.37226052,0.00016432,2]
[329090307,1718099440140,-272.06312715,0.00016432,2]
[329090308,1718099440151,-655.81826114,0.00016432,2]
[329090309,1718099440161,-155.407819,0.00016432,2]
[329090310,1718099440172,-181.8904252,0.00016432,2]
[329090311,1718099440183,-1081.04548311,0.00016432,2]
[329090312,1718099440194,-264.56888533,0.00016432,2]
[329090314,1718099440204,-331.4881504,0.00016432,2]
[329090315,1718099440215,-926.58400092,0.00016432,2]
[329090316,1718099440227,-659.54808576,0.00016432,2]
[329090317,1718099440238,-1877.1524641,0.00016433,2]
[329090318,1718099440249,-19530.44418331,0.00016434,2]
[329090319,1718099440261,-519.03538488,0.00016436,2]
[329090320,1718099440272,-3000.0,0.00018883,2]
[329090321,1718099440285,-20364.8837782,0.00018883,2]
[329090322,1718099440297,-337.5357906,0.00019316,2]
[329090323,1718099440308,-918.9923057,0.0001958,2]
[329090324,1718099440319,-529.07913635,0.0002,4]
[329090325,1718099440330,-675.29103688,0.0002,2]
[329090326,1718099440341,-281.8058979,0.0002,2]
[329090327,1718099440352,-286.39448975,0.00020237,2]
[329090328,1718099440362,-199.25612833,0.00020237,2]
[329090329,1718099440373,-155.69097917,0.00020237,2]
[329090330,1718099440384,-522.09881094,0.00020237,2]
[329090331,1718099440394,-4535.63879869,0.00020237,2]
[329090332,1718099440405,-678.6792919,0.00020237,2]
[329090333,1718099440416,-194.93299377,0.00020237,2]
[329090334,1718099440426,-1508.90361971,0.00020237,7]
[329090335,1718099440437,-2826.62293706,0.00020237,2]
[329090336,1718099440447,-606.170302,0.00020237,2]
[329090337,1718099440458,-496.18723557,0.00020238,2]
[329090338,1718099440472,-19.43005342,0.00020238,2]
[329090339,1718099440483,-153.0,0.0002147,2]
[329090340,1718099440493,-153.0,0.0002147,2]
[329090341,1718099440505,-153.0,0.0002147,2]
[329090342,1718099440515,-28.0517099,0.0002147,2]
[329090344,1718099440530,-124.9482901,0.0002147,2]
[329090346,1718099440541,-153.0,0.0002147,2]
[329090347,1718099440552,-153.0,0.0002147,2]
[329090348,1718099440563,-153.0,0.0002147,2]
[329090349,1718099440574,-153.0,0.0002147,2]
[329090350,1718099440585,-153.0,0.0002147,2]
[329090351,1718099440596,-153.0,0.00021477,2]
[329090352,1718099440607,-153.0,0.00021477,2]
[329090353,1718099440618,-153.0,0.00021477,2]
[329090354,1718099440629,-153.0,0.00021477,2]
[329090355,1718099440640,-153.0,0.00021477,2]
[329090356,1718099440650,-153.0,0.00021477,2]
[329090357,1718099440661,-153.0,0.00021477,2]
[329090358,1718099440673,-153.0,0.00021516,2]
[329090359,1718099440684,-153.0,0.00021516,2]
[329090360,1718099440695,-153.0,0.00021516,2]
[329090361,1718099440706,-153.0,0.00021516,2]
[329090362,1718099440719,-153.0,0.00021516,2]
[329090363,1718099440734,-153.0,0.00021516,2]
[329090364,1718099440745,-566.3,0.00021551,2]
[329090365,1718099440757,-1344.41295828,0.00021663,2]
[329090366,1718099440770,-4239.70515949,0.00021751,2]
[329090367,1718099440783,-383.16,0.00021807,3]
[329090368,1718099440794,-500.0,0.00021816,2]
[329090369,1718099440808,-500.0,0.00021816,2]
[329090370,1718099440821,-500.0,0.00021816,2]
[329090371,1718099440832,-500.0,0.00021816,2]
[329090373,1718099440844,-500.0,0.00021816,2]
[329090374,1718099440855,-500.0,0.00021816,2]
[329090375,1718099440876,-500.0,0.00021816,2]
[329090376,1718099440888,-291.69841665,0.00021816,2]
[329090377,1718099440899,-500.0,0.00021816,2]
[329090378,1718099440916,-500.0,0.00021816,2]
[329090379,1718099440931,-500.0,0.00021816,2]
[329090380,1718099440947,-42756.83328322,0.00021817,2]
[329090381,1718099440963,-587.61838632,0.00021817,2]
[329090382,1718099440976,-587.6183863,0.00021886,2]
[329090383,1718099440992,-392.04315617,0.00021915,2]
[329090384,1718099441008,-1444.37802936,0.00021915,2]
[329090385,1718099441025,-187.30709366,0.00021915,2]
[329090386,1718099441041,-7323.92151102,0.00021917,15]
[329090387,1718099441056,-6044.33327697,0.00021917,15]
[329090388,1718099441074,-501.17999592,0.00021917,2]
[329090389,1718099441090,-500.0,0.00021917,2]
[329090390,1718099441105,-511.04772201,0.00021917,2]
[329090391,1718099441121,-501.41958495,0.00021917,2]
[329090392,1718099441135,-500.97617179,0.00021917,2]
[329090393,1718099441151,-500.0,0.00021917,2]
[329090394,1718099441169,-500.0,0.00021917,2]
[329090395,1718099441185,-500.0,0.00021917,2]
[329090396,1718099441199,-500.0,0.00021917,2]
[329090399,1718099441213,-502.5596357,0.00021917,2]
[329090401,1718099441225,-500.0,0.00021917,2]
[329090403,1718099441239,-500.0,0.00021917,2]
[329090404,1718099441253,-500.0,0.00021917,2]
[329090406,1718099441269,-500.0,0.00021917,2]
[329090408,1718099441285,-502.50623745,0.00021917,2]
[329090410,1718099441300,-500.0,0.00021917,2]
[329090412,1718099441317,-500.0,0.00021917,2]
[329090414,1718099441332,-500.0,0.00021917,2]
[329090415,1718099441345,-505.03349213,0.00021917,2]
[329090416,1718099441357,-502.82621695,0.00021917,2]
[329090417,1718099441368,-511.46602592,0.00021917,2]
[329090418,1718099441381,-500.0,0.00021917,2]
[329090419,1718099441395,-500.0,0.00021917,2]
[329090420,1718099441409,-525.03726627,0.00021917,2]
[329090421,1718099441424,-500.0,0.00021917,2]
[329090422,1718099441437,-500.0,0.00021917,2]
[329090423,1718099441449,-500.0,0.00021917,2]
[329090424,1718099441462,-501.77015956,0.00021917,2]
[329090425,1718099441475,-500.0,0.00021917,2]
[329090426,1718099441490,-500.0,0.00021917,2]
[329090427,1718099441505,-492.77975096,0.00021917,2]
[329090428,1718099441517,-507.83060781,0.00021917,2]
[329090429,1718099441530,-500.0,0.00021917,2]
[329090430,1718099441542,-500.93578537,0.00021917,2]
[329090431,1718099441554,-500.0,0.00021917,2]
[329090432,1718099441568,-500.0,0.00021917,2]
[329090433,1718099441580,-500.0,0.00021917,2]
[329090434,1718099441594,-447.96430116,0.00021917,2]
[329090435,1718099441607,-523.64325891,0.00021917,2]
[329090436,1718099441620,-500.0,0.00021917,2]
[329090437,1718099441634,-500.0,0.00021917,2]
[329090438,1718099441647,-505.26650834,0.00021917,2]
[329090439,1718099441660,-500.0,0.00021917,2]
[329090440,1718099441673,-501.08768205,0.00021917,2]
[329090441,1718099441685,-500.0,0.00021917,2]
[329090442,1718099441699,-183.12086041,0.00021917,2]
[329090443,1718099441712,-500.0,0.00021917,2]
[329090444,1718099441730,-500.0,0.00021917,2]
[329090445,1718099441743,-500.0,0.00021917,2]
[329090446,1718099441756,-500.0,0.00021917,2]
[329090447,1718099441771,-497.34216697,0.00021917,2]
[329090448,1718099441785,-164.50644238,0.00021917,2]
[329090449,1718099441801,-502.71974628,0.00021917,2]
[329090450,1718099441814,-500.0,0.00021917,2]
[329090451,1718099441827,-505.82639184,0.00021917,2]
[329090453,1718099441841,-500.0,0.00021917,2]
[329090455,1718099441854,-151.0,0.00021917,2]
[329090457,1718099441871,-500.0,0.00021917,2]
[329090459,1718099441889,-528.51206667,0.00021917,2]
[329090460,1718099441902,-500.0,0.00021917,2]
[329090462,1718099441914,-151.988398,0.00021917,2]
[329090464,1718099441928,-502.33813299,0.00021917,2]
[329090466,1718099441942,-368.41660308,0.00021917,2]
[329090468,1718099441955,-500.0,0.00021917,2]
[329090469,1718099441968,-503.93438398,0.00021917,2]
[329090471,1718099441982,-501.11646839,0.00021917,2]
[329090473,1718099441995,-157.23325445,0.00021917,2]
[329090475,1718099442010,-500.0,0.00021917,2]
[329090477,1718099442023,-500.0,0.00021917,2]
[329090478,1718099442038,-502.98750538,0.00021917,2]
[329090480,1718099442050,-500.0,0.00021917,2]
[329090482,1718099442064,-535.27825355,0.00021917,2]
[329090483,1718099442076,-503.80865292,0.00021917,2]
[329090484,1718099442089,-500.0,0.00021917,2]
[329090485,1718099442103,-500.0,0.00021917,2]
[329090486,1718099442116,-504.23118899,0.00021917,2]
[329090487,1718099442131,-500.0,0.00021917,2]
[329090488,1718099442144,-500.0,0.00021917,2]
[329090489,1718099442158,-500.0,0.00021917,2]
[329090491,1718099442172,-495.15691351,0.00021917,2]
[329090493,1718099442186,-504.29842193,0.00021917,2]
[329090495,1718099442200,-500.0,0.00021917,2]
[329090497,1718099442214,-502.13028345,0.00021917,2]
[329090499,1718099442227,-500.0,0.00021917,2]
[329090501,1718099442241,-500.0,0.00021917,2]
[329090503,1718099442254,-500.0,0.00021917,2]
[329090504,1718099442266,-500.0,0.00021917,2]
[329090506,1718099442279,-500.0,0.00021917,2]
[329090517,1718099442426,-500.0,0.00021917,2]
[329090519,1718099442446,-500.0,0.00021917,2]
[329090521,1718099442458,-500.0,0.00021917,2]
[329090522,1718099442469,-500.0,0.00021917,2]
[329090524,1718099442480,-154.98450155,0.00021917,2]
[329090526,1718099442492,-509.72041586,0.00021917,2]
[329090528,1718099442503,-500.0,0.00021917,2]
[329090530,1718099442514,-502.57518118,0.00021917,2]
[329090531,1718099442526,-300.29102287,0.00021917,2]
[329090533,1718099442536,-504.54056394,0.00021917,2]
[329090535,1718099442547,-500.0,0.00021917,2]
[329090537,1718099442557,-500.0,0.00021917,2]
[329090538,1718099442569,-516.18877623,0.00021917,2]
[329090540,1718099442580,-500.0,0.00021917,2]
[329090542,1718099442591,-500.0,0.00021917,2]
[329090544,1718099442601,-385.65748618,0.00021917,2]
[329090545,1718099442612,-151.0,0.00021917,2]
[329090547,1718099442622,-500.0,0.00021917,2]
[329090549,1718099442633,-510.13386643,0.00021917,2]
[329090550,1718099442644,-151.0,0.00021917,2]
[329090552,1718099442654,-500.0,0.00021917,2]
[329090554,1718099442665,-500.0,0.00021917,2]
[329090556,1718099442676,-500.0,0.00021917,2]
[329090557,1718099442687,-500.0,0.00021917,2]
[329090559,1718099442698,-500.0,0.00021917,2]
[329090560,1718099442710,-500.0,0.00021917,2]
[329090562,1718099442725,-520.10187489,0.00021917,2]
[329090564,1718099442737,-500.0,0.00021917,2]
[329090565,1718099442748,-500.0,0.00021917,2]
[329090567,1718099442759,-500.0,0.00021917,2]
[329090569,1718099442771,-507.30766513,0.00021917,2]
[329090571,1718099442784,-500.0,0.00021917,2]
[329090572,1718099442795,-500.0,0.00021917,2]
[329090574,1718099442808,-500.0,0.00021917,2]
[329090576,1718099442819,-500.0,0.00021917,2]
[329090577,1718099442830,-500.0,0.00021917,2]
[329090579,1718099442842,-500.0,0.00021917,2]
[329090581,1718099442853,-500.0,0.00021917,2]
[329090583,1718099442864,-500.0,0.00021917,2]
[329090584,1718099442875,-500.0,0.00021917,2]
[329090586,1718099442886,-262.5165486,0.00021917,2]
[329090588,1718099442897,-503.83899908,0.00021917,2]
[329090590,1718099442912,-500.0,0.00021917,2]
[329090591,1718099442929,-500.0,0.00021917,2]
[329090593,1718099442939,-500.0,0.00021917,2]
[329090595,1718099442951,-500.0,0.00021917,2]
[329090596,1718099442963,-500.0,0.00021917,2]
[329090597,1718099442974,-506.04564106,0.00021917,2]
[329090598,1718099442984,-500.0,0.00021917,2]
[329090599,1718099442995,-555.58793569,0.00021917,2]
[329090600,1718099443006,-500.0,0.00021917,2]
[329090601,1718099443018,-500.0,0.00021917,2]
[329090602,1718099443032,-500.0,0.00021917,2]
[329090603,1718099443042,-602.78,0.00021917,2]
[329090604,1718099443054,-507.46232439,0.00021917,2]
[329090605,1718099443064,-500.0,0.00021917,2]
[329090606,1718099443076,-500.0,0.00021917,2]
[329090607,1718099443087,-500.0,0.00021917,2]
[329090608,1718099443097,-500.0,0.00021917,2]
[329090609,1718099443108,-635.96017953,0.00021917,2]